[Event "*** MasterClass Titled Tuesday Blitz"]
[Site "Chess.com"]
[Date "2017.07.04"]
[Round "1"]
[White "Rodalquilar"]
[Black "Godzillator"]
[Result "1-0"]
[WhiteElo "2537"]
[BlackElo "2266"]
[TimeControl "180+2"]
[EndTime "13:08:44 PDT"]
[Termination "Rodalquilar won by resignation"]

1. d4 {[%clk 0:02:14.7]} 1... d5 {[%clk 0:03:00.3]} 2. Bf4 {[%clk 0:02:13.9]}
2... c5 {[%clk 0:03:00.6]} 3. e4 {[%clk 0:02:13.5]} 3... dxe4 {[%clk 0:03:01.3]}
4. d5 {[%clk 0:02:14.3]} 4... a6 {[%clk 0:03:01.9]} 5. Nc3 {[%clk 0:02:14.9]}
5... Nf6 {[%clk 0:03:02.3]} 6. Qe2 {[%clk 0:02:16.2]} 6... Bf5 {[%clk
0:03:02.2]} 7. O-O-O {[%clk 0:02:12.7]} 7... Nbd7 {[%clk 0:03:02.4]} 8. h3
{[%clk 0:02:08.7]} 8... h6 {[%clk 0:03:00.2]} 9. f3 {[%clk 0:01:59]} 9... g5
{[%clk 0:02:59.7]} 10. Bh2 {[%clk 0:01:57.6]} 10... exf3 {[%clk 0:02:55.4]} 11.
Nxf3 {[%clk 0:01:53.2]} 11... Bg7 {[%clk 0:02:55.8]} 12. g4 {[%clk 0:01:44.9]}
12... Bh7 {[%clk 0:02:50.1]} 13. d6 {[%clk 0:01:41.3]} 13... e6 {[%clk
0:02:49.3]} 14. Bg2 {[%clk 0:01:40.8]} 14... Qa5 {[%clk 0:02:44.7]} 15. Ne5
{[%clk 0:01:40.4]} 15... O-O {[%clk 0:02:33.6]} 16. Nc4 {[%clk 0:01:19]} 16...
Qd8 {[%clk 0:02:19.7]} 17. Bxb7 {[%clk 0:01:19.5]} 17... Rb8 {[%clk 0:02:19.6]}
18. Bg2 {[%clk 0:01:21.2]} 18... Nb6 {[%clk 0:02:10.8]} 19. Ne5 {[%clk
0:01:22.4]} 19... Nbd5 {[%clk 0:02:09.3]} 20. Nxd5 {[%clk 0:01:09.7]} 20... Nxd5
{[%clk 0:02:08.5]} 21. Bxd5 {[%clk 0:01:07.2]} 21... exd5 {[%clk 0:02:09.6]} 22.
Rxd5 {[%clk 0:01:08.9]} 22... Re8 {[%clk 0:02:09]} 23. Qc4 {[%clk 0:00:53.7]}
23... Rb4 {[%clk 0:01:56.7]} 24. Qxc5 {[%clk 0:00:52.3]} 24... Rb5 {[%clk
0:01:57.8]} 25. Qd4 {[%clk 0:00:22.4]} 25... Qa5 {[%clk 0:01:21.7]} 26. Rxb5
{[%clk 0:00:22.3]} 26... axb5 {[%clk 0:01:21.9]} 27. Qd5 {[%clk 0:00:21.5]}
27... Qa7 {[%clk 0:00:54.8]} 28. d7 {[%clk 0:00:17.9]} 28... Qe3+ {[%clk
0:00:55.5]} 29. Kb1 {[%clk 0:00:17.1]} 29... Rd8 {[%clk 0:00:49]} 30. Nxf7
{[%clk 0:00:13.6]} 30... Bxc2+ {[%clk 0:00:49.2]} 31. Ka1 {[%clk 0:00:08.6]}
31... Be4 {[%clk 0:00:39.3]} 32. Nxh6+ {[%clk 0:00:05.9]} 32... Kh7 {[%clk
0:00:40.5]} 33. Qe6 {[%clk 0:00:04.4]} 33... Bxh6 {[%clk 0:00:34.7]} 34. Qe7+
{[%clk 0:00:05.3]} 34... Bg7 {[%clk 0:00:35.7]} 35. Be5 {[%clk 0:00:05.8]} 35...
Rg8 {[%clk 0:00:18.4]} 36. d8=Q {[%clk 0:00:06.5]} 36... Qa3 {[%clk 0:00:10.9]}
37. bxa3 {[%clk 0:00:06.1]} 37... Bd5 {[%clk 0:00:09.5]} 38. Qxg8+ {[%clk
0:00:06.8]} 1-0

[Event "*** MasterClass Titled Tuesday Blitz"]
[Site "Chess.com"]
[Date "2017.07.04"]
[Round "1"]
[White "Blitzstream"]
[Black "abubakrtagelsir"]
[Result "1-0"]
[WhiteElo "2448"]
[BlackElo "2161"]
[TimeControl "180+2"]
[EndTime "13:08:47 PDT"]
[Termination "Blitzstream won on time"]

1. d4 {[%clk 0:02:54.5]} 1... d5 {[%clk 0:02:59.9]} 2. Nc3 {[%clk 0:02:52.3]}
2... Nf6 {[%clk 0:02:59.8]} 3. f3 {[%clk 0:02:50.4]} 3... g6 {[%clk 0:02:43.6]}
4. e4 {[%clk 0:02:47.6]} 4... Bg7 {[%clk 0:02:44.2]} 5. e5 {[%clk 0:02:48.2]}
5... Ng8 {[%clk 0:02:41.9]} 6. h4 {[%clk 0:02:48.8]} 6... e6 {[%clk 0:02:37.8]}
7. Bg5 {[%clk 0:02:48.2]} 7... Qd7 {[%clk 0:02:30.3]} 8. Qd2 {[%clk 0:02:46.8]}
8... h6 {[%clk 0:02:30.6]} 9. Be3 {[%clk 0:02:47.3]} 9... Ne7 {[%clk 0:02:29.1]}
10. O-O-O {[%clk 0:02:46.3]} 10... Nf5 {[%clk 0:02:27.8]} 11. Bf2 {[%clk
0:02:47]} 11... h5 {[%clk 0:02:26.5]} 12. g4 {[%clk 0:02:47.3]} 12... Bh6 {[%clk
0:02:25.3]} 13. g5 {[%clk 0:02:48]} 13... Bg7 {[%clk 0:02:25.8]} 14. Kb1 {[%clk
0:02:46.6]} 14... O-O {[%clk 0:02:23.3]} 15. Bd3 {[%clk 0:02:39.8]} 15... Ne7
{[%clk 0:02:14]} 16. Nge2 {[%clk 0:02:37.2]} 16... c5 {[%clk 0:02:14.3]} 17. Ng3
{[%clk 0:02:34.1]} 17... Nbc6 {[%clk 0:02:08.8]} 18. f4 {[%clk 0:02:32.9]} 18...
Nxd4 {[%clk 0:01:58.3]} 19. Bxd4 {[%clk 0:02:32]} 19... cxd4 {[%clk 0:01:58.6]}
20. Nb5 {[%clk 0:02:33.6]} 20... Nc6 {[%clk 0:01:58.4]} 21. Qe2 {[%clk
0:02:33.4]} 21... a6 {[%clk 0:01:56.1]} 22. Nd6 {[%clk 0:02:33.3]} 22... Nb4
{[%clk 0:01:40.9]} 23. Nxh5 {[%clk 0:02:33.4]} 23... gxh5 {[%clk 0:01:37.3]} 24.
Qxh5 {[%clk 0:02:33.3]} 24... Nxd3 {[%clk 0:01:37.7]} 25. Rxd3 {[%clk
0:02:33.3]} 25... a5 {[%clk 0:01:34.3]} 26. Rg3 {[%clk 0:02:31.3]} 26... Ra6
{[%clk 0:01:33.1]} 27. g6 {[%clk 0:02:30.6]} 27... fxg6 {[%clk 0:01:28.9]} 28.
Qxg6 {[%clk 0:02:28.4]} 28... Rxd6 {[%clk 0:01:27.9]} 29. exd6 {[%clk
0:02:30.3]} 29... Qf7 {[%clk 0:01:27.4]} 30. Qd3 {[%clk 0:02:24.7]} 30... Qxf4
{[%clk 0:01:17.8]} 31. Rhg1 {[%clk 0:02:25.5]} 31... Rf7 {[%clk 0:01:13.6]} 32.
h5 {[%clk 0:02:22.4]} 32... e5 {[%clk 0:00:58]} 33. a4 {[%clk 0:01:46.5]} 33...
Bd7 {[%clk 0:00:22.6]} 34. Qg6 {[%clk 0:01:45.9]} 34... Bf5 {[%clk 0:00:12.2]}
35. d7 {[%clk 0:00:57]} 35... Bxd7 {[%clk 0:00:09.3]} 36. h6 {[%clk 0:00:56.6]}
36... Bf5 {[%clk 0:00:08.4]} 37. Qb6 {[%clk 0:00:55.2]} 37... Bxc2+ {[%clk
0:00:07.2]} 38. Kxc2 {[%clk 0:00:51.5]} 38... d3+ {[%clk 0:00:07.6]} 39. Kb1
{[%clk 0:00:49.8]} 39... Kh8 {[%clk 0:00:07.6]} 40. hxg7+ {[%clk 0:00:50.1]}
40... Rxg7 {[%clk 0:00:04.6]} 41. Qd8+ {[%clk 0:00:47.5]} 41... Kh7 {[%clk
0:00:03.4]} 42. Rxg7+ {[%clk 0:00:47.9]} 1-0

[Event "*** MasterClass Titled Tuesday Blitz"]
[Site "Chess.com"]
[Date "2017.07.04"]
[Round "1"]
[White "rasmussvane"]
[Black "pedroholly22"]
[Result "1-0"]
[WhiteElo "2515"]
[BlackElo "2252"]
[TimeControl "180+2"]
[EndTime "13:09:00 PDT"]
[Termination "rasmussvane won by checkmate"]

1. d4 {[%clk 0:03:01.6]} 1... Nf6 {[%clk 0:03:00]} 2. c4 {[%clk 0:03:02.4]} 2...
e6 {[%clk 0:03:00.4]} 3. Nf3 {[%clk 0:03:03.1]} 3... Bb4+ {[%clk 0:02:53.4]} 4.
Nbd2 {[%clk 0:02:59.9]} 4... O-O {[%clk 0:02:52.4]} 5. a3 {[%clk 0:03:00.9]}
5... Be7 {[%clk 0:02:51.3]} 6. e4 {[%clk 0:03:01.7]} 6... d6 {[%clk 0:02:53.2]}
7. Be2 {[%clk 0:03:01.8]} 7... Nfd7 {[%clk 0:02:53.8]} 8. b4 {[%clk 0:02:59.5]}
8... c5 {[%clk 0:02:53.1]} 9. Bb2 {[%clk 0:02:57.8]} 9... a5 {[%clk 0:02:51.4]}
10. dxc5 {[%clk 0:02:54.4]} 10... dxc5 {[%clk 0:02:51.8]} 11. b5 {[%clk
0:02:55.3]} 11... b6 {[%clk 0:02:49]} 12. O-O {[%clk 0:02:55.5]} 12... Bb7
{[%clk 0:02:48.9]} 13. Qc2 {[%clk 0:02:56.5]} 13... f6 {[%clk 0:02:40.4]} 14. e5
{[%clk 0:02:51.7]} 14... fxe5 {[%clk 0:02:38.7]} 15. Nxe5 {[%clk 0:02:52.7]}
15... Nxe5 {[%clk 0:02:38.7]} 16. Bxe5 {[%clk 0:02:53.2]} 16... Nd7 {[%clk
0:02:39.9]} 17. Bc3 {[%clk 0:02:52.6]} 17... Bf6 {[%clk 0:02:40.8]} 18. Bf3
{[%clk 0:02:35.3]} 18... Bxf3 {[%clk 0:02:25.9]} 19. Nxf3 {[%clk 0:02:35.6]}
19... Bxc3 {[%clk 0:02:18.9]} 20. Qxc3 {[%clk 0:02:36.5]} 20... Rf4 {[%clk
0:02:16.9]} 21. Rad1 {[%clk 0:02:34.8]} 21... Qf6 {[%clk 0:02:15.8]} 22. Qe3
{[%clk 0:02:07.6]} 22... Nf8 {[%clk 0:02:12.1]} 23. Ne5 {[%clk 0:01:29.7]} 23...
Qf5 {[%clk 0:01:59.4]} 24. f3 {[%clk 0:01:23.1]} 24... h6 {[%clk 0:01:53.5]} 25.
g3 {[%clk 0:01:23]} 25... Rd4 {[%clk 0:01:45.8]} 26. Rxd4 {[%clk 0:01:23.4]}
26... cxd4 {[%clk 0:01:47.7]} 27. Qxd4 {[%clk 0:01:24.7]} 27... Rc8 {[%clk
0:01:45.3]} 28. Rf2 {[%clk 0:01:19.7]} 28... Rc5 {[%clk 0:01:45.3]} 29. f4
{[%clk 0:01:20.5]} 29... Qb1+ {[%clk 0:01:44.3]} 30. Kg2 {[%clk 0:01:20]} 30...
Qb3 {[%clk 0:01:44.8]} 31. Qd8 {[%clk 0:01:19.4]} 31... Qe3 {[%clk 0:01:14.6]}
32. Qd2 {[%clk 0:00:55.9]} 32... Qe4+ {[%clk 0:01:13.8]} 33. Kg1 {[%clk
0:00:52]} 33... Qb1+ {[%clk 0:01:14]} 34. Rf1 {[%clk 0:00:52.9]} 34... Qb3
{[%clk 0:01:14.4]} 35. Rf3 {[%clk 0:00:52.9]} 35... Qb1+ {[%clk 0:01:13.1]} 36.
Kg2 {[%clk 0:00:54.1]} 36... Ng6 {[%clk 0:01:08.7]} 37. Nxg6 {[%clk 0:00:44.7]}
37... Qxg6 {[%clk 0:01:07.1]} 38. Qe2 {[%clk 0:00:45.5]} 38... Kh7 {[%clk
0:01:05.4]} 39. Re3 {[%clk 0:00:46.2]} 39... Qb1 {[%clk 0:00:23.3]} 40. Rxe6
{[%clk 0:00:46.3]} 40... Rf5 {[%clk 0:00:13.6]} 41. Rxb6 {[%clk 0:00:44]} 41...
h5 {[%clk 0:00:11.9]} 42. Re6 {[%clk 0:00:43.2]} 42... h4 {[%clk 0:00:11.9]} 43.
Qe4 {[%clk 0:00:38.7]} 43... Qb2+ {[%clk 0:00:12.3]} 44. Kh3 {[%clk 0:00:39.4]}
44... hxg3 {[%clk 0:00:12.8]} 45. Qxf5+ {[%clk 0:00:39.8]} 45... g6 {[%clk
0:00:13.7]} 46. Qxg6+ {[%clk 0:00:38.9]} 46... Kh8 {[%clk 0:00:15.6]} 47. Re8#
{[%clk 0:00:40]} 1-0

[Event "*** MasterClass Titled Tuesday Blitz"]
[Site "Chess.com"]
[Date "2017.07.04"]
[Round "1"]
[White "Fandorine"]
[Black "dolynachess"]
[Result "0-1"]
[WhiteElo "2654"]
[BlackElo "2340"]
[TimeControl "180+2"]
[EndTime "13:09:03 PDT"]
[Termination "dolynachess won by resignation"]

1. e4 {[%clk 0:02:35.3]} 1... e6 {[%clk 0:03:00.5]} 2. d4 {[%clk 0:02:32.3]}
2... d5 {[%clk 0:03:01.9]} 3. Nd2 {[%clk 0:02:33.6]} 3... dxe4 {[%clk
0:03:02.3]} 4. Nxe4 {[%clk 0:02:34]} 4... Bd7 {[%clk 0:03:03.8]} 5. Nf3 {[%clk
0:02:22.1]} 5... Bc6 {[%clk 0:03:05]} 6. Bd3 {[%clk 0:02:23.4]} 6... Nd7 {[%clk
0:03:05.3]} 7. O-O {[%clk 0:02:24.2]} 7... Ngf6 {[%clk 0:03:06.7]} 8. Ng3 {[%clk
0:02:22.9]} 8... Bxf3 {[%clk 0:03:07.3]} 9. Qxf3 {[%clk 0:02:23.4]} 9... c6
{[%clk 0:03:09.2]} 10. c3 {[%clk 0:02:24.4]} 10... Bd6 {[%clk 0:03:05.6]} 11.
Ne4 {[%clk 0:02:23.2]} 11... Nxe4 {[%clk 0:03:03.6]} 12. Qxe4 {[%clk 0:02:25.1]}
12... Nf6 {[%clk 0:03:04.6]} 13. Qh4 {[%clk 0:02:25.5]} 13... Be7 {[%clk
0:03:02]} 14. Re1 {[%clk 0:02:21.5]} 14... h6 {[%clk 0:02:54.2]} 15. Qg3 {[%clk
0:02:13.2]} 15... Rg8 {[%clk 0:02:27.2]} 16. Bd2 {[%clk 0:02:09.6]} 16... Bd6
{[%clk 0:02:26.8]} 17. Qh3 {[%clk 0:01:59.8]} 17... Qc7 {[%clk 0:02:23.9]} 18.
b4 {[%clk 0:01:55.7]} 18... a5 {[%clk 0:02:23.8]} 19. b5 {[%clk 0:01:55.7]}
19... Nd5 {[%clk 0:02:09.6]} 20. bxc6 {[%clk 0:01:32.4]} 20... bxc6 {[%clk
0:02:07.6]} 21. c4 {[%clk 0:01:19.7]} 21... Nf6 {[%clk 0:01:52.1]} 22. Rab1
{[%clk 0:01:08.4]} 22... Bb4 {[%clk 0:01:30.1]} 23. Bxb4 {[%clk 0:01:03.1]}
23... axb4 {[%clk 0:01:31]} 24. Rxb4 {[%clk 0:01:04.2]} 24... Ke7 {[%clk
0:01:28.2]} 25. Qf3 {[%clk 0:00:37.2]} 25... Rgd8 {[%clk 0:01:08.5]} 26. Reb1
{[%clk 0:00:22.2]} 26... Kf8 {[%clk 0:00:52.7]} 27. g3 {[%clk 0:00:18.7]} 27...
Rxd4 {[%clk 0:00:46.7]} 28. a4 {[%clk 0:00:16.6]} 28... Qd6 {[%clk 0:00:45.2]}
29. Bf1 {[%clk 0:00:15.7]} 29... Kg8 {[%clk 0:00:35.9]} 30. Rb6 {[%clk
0:00:04.5]} 30... Ne4 {[%clk 0:00:30.6]} 31. Qe3 {[%clk 0:00:03.6]} 31... Rxa4
{[%clk 0:00:22.4]} 32. Rb8+ {[%clk 0:00:04.2]} 32... Kh7 {[%clk 0:00:23.3]} 33.
Bd3 {[%clk 0:00:05.6]} 33... f5 {[%clk 0:00:21.1]} 34. Bxe4 {[%clk 0:00:06.4]}
34... Rxe4 {[%clk 0:00:22]} 35. Qc3 {[%clk 0:00:07.2]} 35... Raxc4 {[%clk
0:00:22.5]} 36. Qb2 {[%clk 0:00:06.5]} 36... Rcd4 {[%clk 0:00:22]} 37. Rb7
{[%clk 0:00:06.2]} 37... Rd1+ {[%clk 0:00:21.6]} 38. Kg2 {[%clk 0:00:03.7]}
38... Rdd4 {[%clk 0:00:12.8]} 39. Ra1 {[%clk 0:00:04.8]} 39... Qd5 {[%clk
0:00:13.5]} 40. f3 {[%clk 0:00:06]} 40... Rd2+ {[%clk 0:00:12.3]} 0-1

[Event "*** MasterClass Titled Tuesday Blitz"]
[Site "Chess.com"]
[Date "2017.07.04"]
[Round "1"]
[White "Divertissement"]
[Black "kharov2001"]
[Result "1-0"]
[WhiteElo "2406"]
[BlackElo "2038"]
[TimeControl "180+2"]
[EndTime "13:09:07 PDT"]
[Termination "Divertissement won by resignation"]

1. d4 {[%clk 0:02:57.6]} 1... Nf6 {[%clk 0:02:59.8]} 2. Nf3 {[%clk 0:02:55.1]}
2... e6 {[%clk 0:03:00.8]} 3. g3 {[%clk 0:02:54.7]} 3... b6 {[%clk 0:03:01.5]}
4. Bg2 {[%clk 0:02:55.5]} 4... Bb7 {[%clk 0:03:03.4]} 5. O-O {[%clk 0:02:56.8]}
5... Be7 {[%clk 0:03:04.4]} 6. c4 {[%clk 0:02:56.9]} 6... O-O {[%clk 0:03:05.7]}
7. Nc3 {[%clk 0:02:56]} 7... d6 {[%clk 0:03:07]} 8. d5 {[%clk 0:02:55.8]} 8...
e5 {[%clk 0:03:07.5]} 9. e4 {[%clk 0:02:55.1]} 9... Nbd7 {[%clk 0:03:07.6]} 10.
Ne1 {[%clk 0:02:55.3]} 10... a5 {[%clk 0:03:06.3]} 11. Nd3 {[%clk 0:02:54.4]}
11... Ne8 {[%clk 0:02:54.9]} 12. Be3 {[%clk 0:02:45.7]} 12... g6 {[%clk
0:02:54.8]} 13. f4 {[%clk 0:02:45.2]} 13... Ng7 {[%clk 0:02:53.4]} 14. f5 {[%clk
0:02:42.6]} 14... f6 {[%clk 0:02:53.4]} 15. g4 {[%clk 0:02:34.8]} 15... Nc5
{[%clk 0:02:44.1]} 16. Bxc5 {[%clk 0:02:27.6]} 16... dxc5 {[%clk 0:02:44.4]} 17.
Qd2 {[%clk 0:02:17.2]} 17... Rf7 {[%clk 0:02:42.8]} 18. Rf3 {[%clk 0:02:14.4]}
18... Ne8 {[%clk 0:02:42.4]} 19. Raf1 {[%clk 0:02:09.6]} 19... Nd6 {[%clk
0:02:40.4]} 20. b3 {[%clk 0:02:06.1]} 20... g5 {[%clk 0:02:41.4]} 21. h4 {[%clk
0:02:05.6]} 21... Rg7 {[%clk 0:02:41.7]} 22. Rh3 {[%clk 0:02:01.2]} 22... Qf8
{[%clk 0:02:31.8]} 23. Kf2 {[%clk 0:01:57.5]} 23... Kf7 {[%clk 0:02:11.7]} 24.
hxg5 {[%clk 0:01:54.8]} 24... fxg5 {[%clk 0:02:06.7]} 25. Nxe5+ {[%clk
0:01:54.5]} 25... Kg8 {[%clk 0:02:06.2]} 26. Nd3 {[%clk 0:01:48.3]} 26... Re8
{[%clk 0:02:00.1]} 27. e5 {[%clk 0:01:44.5]} 27... Bf6 {[%clk 0:01:48.3]} 28.
Re1 {[%clk 0:01:21.2]} 28... Rge7 {[%clk 0:01:31.1]} 29. Rhe3 {[%clk 0:01:12.4]}
29... Bg7 {[%clk 0:01:22.5]} 30. Kg1 {[%clk 0:01:01.9]} 30... h6 {[%clk
0:01:02.4]} 31. f6 {[%clk 0:00:50.4]} 31... Bxf6 {[%clk 0:01:00.1]} 32. exf6
{[%clk 0:00:51.8]} 32... Rxe3 {[%clk 0:01:00.9]} 33. Rxe3 {[%clk 0:00:53.1]}
33... Qxf6 {[%clk 0:01:02.2]} 34. Rxe8+ {[%clk 0:00:52.4]} 34... Nxe8 {[%clk
0:01:02.8]} 35. Ne4 {[%clk 0:00:49.2]} 35... Qd4+ {[%clk 0:01:02.9]} 36. Ndf2
{[%clk 0:00:48.4]} 36... Qe5 {[%clk 0:01:00.3]} 37. Qc3 {[%clk 0:00:45]} 37...
Qf4 {[%clk 0:00:56.6]} 38. Qf3 {[%clk 0:00:44.4]} 38... Qc1+ {[%clk 0:00:41.3]}
39. Kh2 {[%clk 0:00:44.9]} 39... Bc8 {[%clk 0:00:40.7]} 40. Nf6+ {[%clk
0:00:39.8]} 40... Nxf6 {[%clk 0:00:40.8]} 41. Qxf6 {[%clk 0:00:41.3]} 41... Qc2
{[%clk 0:00:38.3]} 42. Qd8+ {[%clk 0:00:35.5]} 42... Kg7 {[%clk 0:00:37.6]} 43.
Qxc7+ {[%clk 0:00:36.2]} 43... Kg6 {[%clk 0:00:34.8]} 44. Be4+ {[%clk
0:00:36.1]} 1-0

[Event "*** MasterClass Titled Tuesday Blitz"]
[Site "Chess.com"]
[Date "2017.07.04"]
[Round "1"]
[White "improve_every_day"]
[Black "popov_m"]
[Result "0-1"]
[WhiteElo "1963"]
[BlackElo "2389"]
[TimeControl "180+2"]
[EndTime "13:09:10 PDT"]
[Termination "popov_m won by resignation"]

1. e4 {[%clk 0:03:00.6]} 1... g6 {[%clk 0:02:59.9]} 2. d4 {[%clk 0:03:00.8]}
2... Bg7 {[%clk 0:03:01.8]} 3. Nf3 {[%clk 0:03:01.2]} 3... d6 {[%clk 0:03:02.6]}
4. Bc4 {[%clk 0:03:00.1]} 4... Nf6 {[%clk 0:03:02.6]} 5. Nc3 {[%clk 0:03:00.2]}
5... O-O {[%clk 0:02:57.9]} 6. Qe2 {[%clk 0:02:59.8]} 6... Nc6 {[%clk
0:02:50.8]} 7. Bb3 {[%clk 0:02:57.8]} 7... Bg4 {[%clk 0:02:49.7]} 8. Be3 {[%clk
0:02:56.3]} 8... e5 {[%clk 0:02:50.8]} 9. dxe5 {[%clk 0:02:14.9]} 9... Nxe5
{[%clk 0:02:49.3]} 10. O-O-O {[%clk 0:02:13]} 10... Nxf3 {[%clk 0:02:36]} 11.
gxf3 {[%clk 0:02:14.9]} 11... Bh5 {[%clk 0:02:37.5]} 12. Rhg1 {[%clk 0:01:44.4]}
12... Qe7 {[%clk 0:02:20.6]} 13. Nd5 {[%clk 0:01:38.1]} 13... Nxd5 {[%clk
0:02:20.6]} 14. Rxd5 {[%clk 0:01:40]} 14... Kh8 {[%clk 0:02:11.3]} 15. Bd4
{[%clk 0:01:28.8]} 15... Bxd4 {[%clk 0:02:09.1]} 16. Rxd4 {[%clk 0:01:29.6]}
16... Qe5 {[%clk 0:02:10.8]} 17. Rd5 {[%clk 0:01:11.8]} 17... Qxh2 {[%clk
0:01:59.9]} 18. Rdg5 {[%clk 0:01:08.9]} 18... Qf4+ {[%clk 0:01:58.3]} 19. Kb1
{[%clk 0:01:03.8]} 19... Qxf3 {[%clk 0:01:54.6]} 20. Qc4 {[%clk 0:00:44.9]}
20... h6 {[%clk 0:01:15]} 21. Qd4+ {[%clk 0:00:38]} 21... Kh7 {[%clk 0:01:16.1]}
22. R5g3 {[%clk 0:00:19.3]} 22... Qf4 {[%clk 0:01:12.2]} 23. c3 {[%clk
0:00:19.1]} 23... g5 {[%clk 0:01:01]} 24. Bc2 {[%clk 0:00:15.7]} 24... Bg6
{[%clk 0:01:01.8]} 25. Rg4 {[%clk 0:00:13.2]} 25... Qe5 {[%clk 0:01:00.8]} 26.
Qd2 {[%clk 0:00:12.3]} 26... Rae8 {[%clk 0:00:47.8]} 27. f4 {[%clk 0:00:12.9]}
27... gxf4 {[%clk 0:00:49.1]} 28. Qf2 {[%clk 0:00:11.1]} 28... c5 {[%clk
0:00:30.8]} 29. Rxf4 {[%clk 0:00:11.5]} 29... b5 {[%clk 0:00:30.6]} 30. Rf6
{[%clk 0:00:11]} 30... Rg8 {[%clk 0:00:18.9]} 31. Rh1 {[%clk 0:00:12.2]} 31...
Re6 {[%clk 0:00:16.7]} 32. Qe3 {[%clk 0:00:12.6]} 32... h5 {[%clk 0:00:12.9]}
33. Rf4 {[%clk 0:00:13.1]} 33... d5 {[%clk 0:00:11.9]} 34. Rfh4 {[%clk
0:00:12.9]} 34... d4 {[%clk 0:00:12.8]} 35. Qh3 {[%clk 0:00:11.3]} 35... dxc3
{[%clk 0:00:12.1]} 36. b3 {[%clk 0:00:11.9]} 36... Rd6 {[%clk 0:00:10.5]} 37.
Qg2 {[%clk 0:00:11.2]} 37... Rd2 {[%clk 0:00:09.5]} 38. Qf3 {[%clk 0:00:11.8]}
38... Kg7 {[%clk 0:00:07.1]} 39. Rxh5 {[%clk 0:00:12.6]} 39... Bxh5 {[%clk
0:00:08.2]} 40. Rxh5 {[%clk 0:00:13.7]} 40... Qf6 {[%clk 0:00:08.2]} 41. Rg5+
{[%clk 0:00:14.4]} 41... Qxg5 {[%clk 0:00:07.7]} 42. Qxc3+ {[%clk 0:00:11.5]}
42... f6 {[%clk 0:00:08.7]} 43. Qxc5 {[%clk 0:00:10.8]} 43... Qxc5 {[%clk
0:00:09.1]} 0-1

[Event "*** MasterClass Titled Tuesday Blitz"]
[Site "Chess.com"]
[Date "2017.07.04"]
[Round "1"]
[White "ehrenfeld"]
[Black "escher"]
[Result "1-0"]
[WhiteElo "2405"]
[BlackElo "2029"]
[TimeControl "180+2"]
[EndTime "13:09:25 PDT"]
[Termination "ehrenfeld won by resignation"]

1. e4 {[%clk 0:03:01.9]} 1... c5 {[%clk 0:02:55.7]} 2. Nf3 {[%clk 0:03:01.5]}
2... Nc6 {[%clk 0:02:56.6]} 3. Bb5 {[%clk 0:03:01.9]} 3... g6 {[%clk 0:02:56.6]}
4. Bxc6 {[%clk 0:03:02.5]} 4... dxc6 {[%clk 0:02:57.6]} 5. d3 {[%clk 0:03:03.4]}
5... Bg7 {[%clk 0:02:58.9]} 6. h3 {[%clk 0:03:02.7]} 6... e5 {[%clk 0:02:58.5]}
7. Nc3 {[%clk 0:03:02.3]} 7... Ne7 {[%clk 0:02:58.6]} 8. Be3 {[%clk 0:03:02.9]}
8... b6 {[%clk 0:02:59]} 9. Qd2 {[%clk 0:03:03.9]} 9... O-O {[%clk 0:02:57.2]}
10. O-O {[%clk 0:03:01.6]} 10... Be6 {[%clk 0:02:52.2]} 11. Bh6 {[%clk
0:03:00.4]} 11... Qd6 {[%clk 0:02:51.2]} 12. Rae1 {[%clk 0:02:48.5]} 12... Rad8
{[%clk 0:02:50.5]} 13. Bxg7 {[%clk 0:02:47.5]} 13... Kxg7 {[%clk 0:02:51.2]} 14.
Qg5 {[%clk 0:02:46.1]} 14... f6 {[%clk 0:02:48.3]} 15. Qg3 {[%clk 0:02:46.6]}
15... c4 {[%clk 0:02:41]} 16. d4 {[%clk 0:02:22.8]} 16... exd4 {[%clk
0:02:29.9]} 17. e5 {[%clk 0:02:23.9]} 17... fxe5 {[%clk 0:02:23.5]} 18. Ne4
{[%clk 0:02:24.3]} 18... Nf5 {[%clk 0:02:08.4]} 19. Qh2 {[%clk 0:02:15.4]} 19...
Qd5 {[%clk 0:01:56.5]} 20. Nxe5 {[%clk 0:02:13.6]} 20... Ne3 {[%clk 0:01:46.9]}
21. fxe3 {[%clk 0:01:44.7]} 21... Qxe4 {[%clk 0:01:46.6]} 22. exd4 {[%clk
0:01:41.3]} 22... Qxd4+ {[%clk 0:01:39.8]} 23. Kh1 {[%clk 0:01:41.2]} 23... Bd5
{[%clk 0:01:26.4]} 24. c3 {[%clk 0:01:25.9]} 24... Qe4 {[%clk 0:01:15.2]} 25.
Ng4 {[%clk 0:01:20.3]} 25... Rxf1+ {[%clk 0:01:04.2]} 26. Rxf1 {[%clk
0:01:20.5]} 26... Rd7 {[%clk 0:00:58.2]} 27. Qg3 {[%clk 0:01:05]} 27... Re7
{[%clk 0:00:52.6]} 28. Rf2 {[%clk 0:00:56.6]} 28... Qb1+ {[%clk 0:00:44]} 29.
Kh2 {[%clk 0:00:57]} 29... Qe4 {[%clk 0:00:44.5]} 30. Nf6 {[%clk 0:00:56.5]}
30... Qe6 {[%clk 0:00:40.2]} 31. Ng4 {[%clk 0:00:49.5]} 31... h5 {[%clk
0:00:38.6]} 32. Rf6 {[%clk 0:00:48.5]} 32... Qe2 {[%clk 0:00:27.1]} 33. Rf2
{[%clk 0:00:30.6]} 33... Qe6 {[%clk 0:00:26.4]} 34. Rf6 {[%clk 0:00:23.5]} 34...
Qd7 {[%clk 0:00:19.5]} 35. Rxg6+ {[%clk 0:00:23.3]} 35... Kxg6 {[%clk
0:00:16.6]} 36. Ne5+ {[%clk 0:00:24]} 36... Kf6 {[%clk 0:00:17.1]} 37. Nxd7+
{[%clk 0:00:24.7]} 37... Rxd7 {[%clk 0:00:19]} 38. Qf4+ {[%clk 0:00:24.5]} 38...
Ke6 {[%clk 0:00:20.3]} 39. Qh6+ {[%clk 0:00:25]} 39... Ke5 {[%clk 0:00:21.4]}
40. Qxh5+ {[%clk 0:00:26.1]} 40... Kd6 {[%clk 0:00:21.9]} 41. Qf5 {[%clk
0:00:25.5]} 41... Rf7 {[%clk 0:00:22.2]} 42. Qg4 {[%clk 0:00:25.1]} 42... Kc5
{[%clk 0:00:20.4]} 43. h4 {[%clk 0:00:24.7]} 43... Kb5 {[%clk 0:00:20.5]} 44. h5
{[%clk 0:00:25.1]} 44... Rh7 {[%clk 0:00:20.4]} 45. Qg5 {[%clk 0:00:25.5]} 45...
Ka6 {[%clk 0:00:17.1]} 46. g4 {[%clk 0:00:26.1]} 46... Rf7 {[%clk 0:00:17.2]}
47. Qe5 {[%clk 0:00:25]} 47... Rf2+ {[%clk 0:00:17.5]} 48. Kg3 {[%clk
0:00:25.1]} 48... Rg2+ {[%clk 0:00:17.3]} 49. Kf4 {[%clk 0:00:24.9]} 49... Rf2+
{[%clk 0:00:17.4]} 50. Kg5 {[%clk 0:00:25.5]} 50... Rg2 {[%clk 0:00:18.4]} 51.
h6 {[%clk 0:00:25.8]} 51... Bf3 {[%clk 0:00:19.2]} 52. Qf4 {[%clk 0:00:25.7]}
52... Bd1 {[%clk 0:00:20]} 53. Qxc4+ {[%clk 0:00:25.4]} 53... b5 {[%clk
0:00:20.6]} 54. Qf4 {[%clk 0:00:25.4]} 54... Ka5 {[%clk 0:00:22.5]} 55. h7
{[%clk 0:00:24.2]} 55... Rxg4+ {[%clk 0:00:20.4]} 56. Qxg4 {[%clk 0:00:24.7]}
56... Bxg4 {[%clk 0:00:22.3]} 57. Kxg4 {[%clk 0:00:24.9]} 1-0